fUST/lending_fUST_20250423
["ID","MTS","AMOUNT","RATE_DAILY","PERIOD"]
[358717525,1745401846803,-500.0,0.00020308,2]
[358717526,1745401846813,-500.0,0.00020308,2]
[358717527,1745401846822,-505.62,0.00020308,2]
[358717528,1745401846832,-540.22,0.00020308,2]
[358717529,1745401846842,-636.26515088,0.00020308,2]
[358717530,1745401846852,-500.0,0.00020308,2]
[358717531,1745401846862,-500.0,0.00020308,2]
[358717532,1745401846872,-500.0,0.00020308,2]
[358717533,1745401846882,-500.0,0.00020308,2]
[358717534,1745401846892,-500.0,0.00020308,2]
[358717535,1745401846901,-500.0,0.00020308,2]
[358717536,1745401846912,-500.0,0.00020308,2]
[358717537,1745401846921,-500.0,0.00020308,2]
[358717538,1745401846931,-508.25960313,0.00020309,2]
[358717539,1745401846940,-500.0,0.00020309,2]
[358717540,1745401846951,-500.0,0.00020309,2]
[358717541,1745401846960,-500.0,0.00020309,2]
[358717542,1745401846969,-500.0,0.00020309,2]
[358717543,1745401846979,-500.0,0.00020309,2]
[358717544,1745401846989,-500.0,0.00020309,2]
[358717545,1745401846998,-580.26,0.00020309,2]
[358717546,1745401847008,-500.0,0.00020309,2]
[358717547,1745401847018,-500.0,0.00020309,2]
[358717548,1745401847028,-581.7,0.00020309,2]
[358717549,1745401847038,-500.0,0.00020309,2]
[358717550,1745401847048,-500.0,0.00020309,2]
[358717551,1745401847057,-500.0,0.00020309,2]
[358717552,1745401847067,-500.0,0.00020309,2]
[358717553,1745401847077,-500.0,0.00020309,2]
[358717554,1745401847087,-500.0,0.00020309,2]
[358717555,1745401847097,-500.0,0.00020309,2]
[358717556,1745401847106,-599.25,0.00020309,2]
[358717557,1745401847116,-500.0,0.00020309,2]
[358717558,1745401847125,-500.0,0.00020309,2]
[358717559,1745401847135,-500.0,0.00020309,2]
[358717560,1745401847145,-500.0,0.00020309,2]
[358717561,1745401847155,-500.0,0.00020309,2]
[358717562,1745401847164,-500.0,0.00020309,2]
[358717563,1745401847174,-500.0,0.00020309,2]
[358717564,1745401847184,-500.0,0.00020309,2]
[358717565,1745401847193,-239.61,0.00020309,2]
[358717566,1745401847203,-500.0,0.00020309,2]
[358717567,1745401847212,-500.0,0.00020309,2]
[358717568,1745401847223,-500.0,0.00020309,2]
[358717569,1745401847232,-500.0,0.00020309,2]
[358717570,1745401847241,-500.0,0.00020309,2]
[358717571,1745401847251,-500.0,0.00020309,2]
[358717572,1745401847261,-500.0,0.00020309,2]
[358717573,1745401847270,-500.0,0.00020309,2]
[358717574,1745401847281,-500.0,0.00020309,2]
[358717575,1745401847291,-500.0,0.00020309,2]
[358717576,1745401847300,-1580.68,0.00020309,2]
[358717577,1745401847310,-500.0,0.00020309,2]
[358717578,1745401847319,-157.73825472,0.00020309,2]
[358717579,1745401847329,-2479.65,0.00020309,2]
[358717580,1745401847338,-500.0,0.00020309,2]
[358717581,1745401847349,-500.0,0.00020309,2]
[358717582,1745401847359,-481.76,0.00020309,2]
[358717583,1745401847368,-500.0,0.00020309,2]
[358717584,1745401847378,-500.0,0.00020309,2]
[358717585,1745401847388,-500.0,0.00020309,2]
[358717586,1745401847397,-500.0,0.00020309,2]
[358717587,1745401847406,-500.0,0.00020309,2]
[358717588,1745401847417,-500.0,0.00020309,2]
[358717589,1745401847427,-500.0,0.00020309,2]
[358717590,1745401847436,-500.0,0.00020309,2]
[358717591,1745401847445,-591.78,0.00020309,2]
[358717592,1745401847455,-500.0,0.00020309,2]
[358717593,1745401847465,-500.0,0.00020309,2]
[358717594,1745401847475,-537.51,0.00020309,2]
[358717595,1745401847485,-575.55197582,0.00020309,2]
[358717596,1745401847495,-1558.18,0.00020309,2]
[358717597,1745401847504,-500.0,0.00020309,2]
[358717598,1745401847514,-500.0,0.00020309,2]
[358717599,1745401847523,-500.0,0.00020309,2]
[358717600,1745401847533,-500.0,0.00020309,2]
[358717601,1745401847542,-500.0,0.00020309,2]
[358717602,1745401847551,-500.0,0.00020309,2]
[358717603,1745401847560,-500.0,0.00020309,2]
[358717604,1745401847570,-500.0,0.00020309,2]
[358717605,1745401847579,-500.0,0.00020309,2]
[358717606,1745401847589,-500.0,0.00020309,2]
[358717607,1745401847599,-500.0,0.00020309,2]
[358717608,1745401847608,-500.0,0.0002031,2]
[358717609,1745401847618,-500.0,0.0002031,2]
[358717610,1745401847627,-503.249267,0.00020311,2]
[358717611,1745401847636,-361.62225559,0.00020311,2]
[358717612,1745401847645,-617.93,0.00020311,2]
[358717613,1745401847679,-500.0,0.00020311,2]
[358717614,1745401847689,-500.0,0.00020311,2]
[358717615,1745401847698,-500.0,0.00020311,2]
[358717616,1745401847708,-500.0,0.00020311,2]
[358717617,1745401847719,-500.0,0.00020311,2]
[358717618,1745401847728,-500.0,0.00020311,2]
[358717619,1745401847737,-500.0,0.00020311,2]
[358717620,1745401847747,-500.0,0.00020311,2]
[358717621,1745401847758,-500.0,0.00020311,2]
[358717622,1745401847767,-500.0,0.00020311,2]
[358717623,1745401847777,-500.0,0.00020311,2]
[358717624,1745401847787,-500.0,0.00020311,2]
[358717625,1745401847796,-500.0,0.00020311,2]
[358717626,1745401847805,-500.0,0.00020311,2]
[358717627,1745401847815,-500.0,0.00020311,2]
[358717628,1745401847824,-500.0,0.00020311,2]
[358717629,1745401847835,-500.0,0.00020311,2]
[358717630,1745401847844,-500.0,0.00020311,2]
[358717631,1745401847853,-500.0,0.00020311,2]
[358717632,1745401847863,-500.0,0.00020311,2]
[358717633,1745401847872,-213.44211737,0.00020311,2]
[358717634,1745401848076,-500.0,0.00020035,2]
[358717635,1745401848085,-156.9768466,0.0002014,2]
[358717636,1745401849060,-199.9956401,0.00020032,2]
[358717637,1745401855240,-300.0043599,0.00020032,2]
[358717638,1745401855266,-199.9956401,0.00020032,2]
[358717639,1745401879079,406.0,0.0002001,2]
[358717640,1745401889074,-160.12358261,0.00020031,2]
[358717641,1745401905761,-195.98,0.00020024,2]
[358717642,1745401905788,-139.87641739,0.00020031,2]
[358717643,1745401905813,-14.02414814,0.00020031,2]
[358717644,1745401912173,454.36423343,0.00019935,2]
[358717645,1745401912445,-150.11943447,0.00020031,2]
[358717646,1745401926078,-197.88056553,0.00020031,2]
[358717647,1745401927621,-152.0,0.00020031,2]
[358717648,1745401937133,-67.85210861,0.00020031,2]
[358717649,1745401937156,-110.60691561,0.00020031,2]
[358717650,1745401950174,328074.86958597,0.00019933,2]
[358717653,1745402087988,-178.45902422,0.00019931,2]
[358717654,1745402088516,-266.04171689,0.00019932,2]
[358717655,1745402092969,-152.0,0.00019932,2]
[358717656,1745402127702,-300.0,0.00019931,2]
[358717657,1745402127727,-41.77928764,0.00019931,2]
[358718154,1745402159976,-166.5654824,0.00019931,2]
[358718330,1745402168520,-991.26031857,0.00019831,2]
[358720996,1745402298505,-435.06870426,0.00019832,2]
[358722224,1745402488873,-470.18357879,0.00019831,2]
[358722230,1745402690979,-411.41063145,0.0001983,2]
[358722232,1745402793235,-151.0,0.00019178,2]
[358722233,1745402793261,-63.84921464,0.00019315,2]
[358722234,1745402848154,-92.46329536,0.00019315,2]
[358722235,1745402848177,-199.96916174,0.0001983,2]
[358722236,1745402855129,-24689.0,0.0001893,2]
[358722238,1745402870746,-211.0,0.0001893,2]
[358722239,1745402870769,-81.4324571,0.0001983,2]
[358722240,1745402875231,-83.64533951,0.0001983,2]
[358722241,1745402875256,-143.91698327,0.0001983,2]
[358722242,1745402882898,-145.23899624,0.0001983,2]
[358722243,1745402882920,-6.76100376,0.0001992,3]
[358722244,1745402890956,-187.57899624,0.0001992,3]
[358722245,1745402890983,-61.5415467,0.00019927,2]
[358722246,1745402896555,-191.89311598,0.00019828,2]
[358722247,1745402914365,-238.81878564,0.00019828,2]
[358722248,1745402914390,-12.06067142,0.00019927,2]
[358722254,1745402942226,-169.81043267,0.00019927,2]
[358722260,1745402984163,425.0,0.00018,2]
[358722261,1745403001945,-173.0062836,0.00019927,2]
[358722262,1745403001975,-62.41622048,0.00019927,2]
[358722263,1745403007420,-151.0,0.00019918,2]
[358722264,1745403012045,-207.4,0.00019918,2]
[358722265,1745403012074,-59.77485641,0.00019926,2]
[358722266,1745403019721,-240.22514359,0.00019926,2]
[358722267,1745403019745,-30.27278641,0.00019926,2]
[358722337,1745403032563,-939.52,0.00018931,2]
[358722342,1745403032607,-1109.14178699,0.00018931,2]
[358722344,1745403032619,-7670.24723521,0.00018931,2]
[358722346,1745403032628,-869.72721359,0.00019926,2]
[358722348,1745403032638,-500.0,0.00019926,2]
[358722350,1745403032647,-504.75914451,0.00019926,2]
[358722352,1745403032656,-501.45543661,0.00019926,2]
[358722354,1745403032666,-534.91192242,0.00019926,2]
[358722356,1745403032675,-504.76187709,0.00019926,2]
[358722358,1745403032684,-500.0,0.00019926,2]
[358722360,1745403032693,-500.0,0.00019926,2]
[358722362,1745403032704,-500.0,0.00019926,2]
[358722364,1745403032713,-500.0,0.00019926,2]
[358722366,1745403032722,-500.0,0.00019926,2]
[358722368,1745403032732,-500.0,0.00019926,2]
[358722370,1745403032741,-500.0,0.00019926,2]
[358722372,1745403032751,-500.0,0.00019926,2]
[358722374,1745403032760,-500.0,0.00019926,2]
[358722376,1745403032769,-500.0,0.00019926,2]
[358722378,1745403032779,-500.0,0.00019926,2]
[358722380,1745403032788,-500.0,0.00019926,2]
[358722382,1745403032797,-500.0,0.00019926,2]
[358722384,1745403032807,-500.0,0.00019926,2]
[358722386,1745403032816,-500.0,0.00019926,2]
[358722388,1745403032827,-500.0,0.00019926,2]
[358722390,1745403032836,-500.0,0.00019926,2]
[358722392,1745403032845,-500.0,0.00019926,2]
[358722394,1745403032855,-437.58377952,0.00019927,2]
[358722396,1745403032864,-500.0,0.00019927,2]
[358722398,1745403032873,-509.72,0.00019927,2]
[358722400,1745403032882,-500.0,0.00019927,2]
[358722402,1745403032891,-835.53,0.00019927,2]
[358722404,1745403032900,-500.0,0.00019927,2]
[358722406,1745403032909,-500.0,0.00019927,2]
[358722408,1745403032920,-2593.26,0.00019927,2]
[358722410,1745403032929,-500.0,0.00019927,2]
[358722412,1745403032939,-500.0,0.00019927,2]
[358722414,1745403032948,-500.0,0.00019927,2]
[358722416,1745403032958,-8207.28,0.00019927,2]
[358722418,1745403032968,-500.0,0.00019927,2]
[358722420,1745403032977,-4716.7493611,0.00019927,2]
[358722426,1745403033018,-500.0,0.00019926,2]
[358722428,1745403033030,-221.44212012,0.00019926,2]
[358722429,1745403033041,-500.0,0.00019926,2]
[358722431,1745403033050,-500.0,0.00019926,2]
[358722433,1745403033060,-5649.8806389,0.00019927,2]
[358722435,1745403033070,-500.0,0.00019927,2]
[358722437,1745403033082,-500.0,0.00019927,2]
[358722439,1745403033092,-500.0,0.00019927,2]
[358722441,1745403033102,-500.0,0.00019927,2]
[358722443,1745403033112,-500.0,0.00019927,2]
[358722445,1745403033121,-500.0,0.00019927,2]
[358722447,1745403033131,-4233.86,0.00019927,2]
[358722449,1745403033141,-500.0,0.00019927,2]
[358722451,1745403033150,-500.0,0.00019927,2]
[358722453,1745403033160,-751.13,0.00019927,2]
[358722455,1745403033170,-500.0,0.00019927,2]
[358722457,1745403033179,-500.0,0.00019927,2]
[358722459,1745403033189,-500.0,0.00019927,2]
[358722461,1745403033198,-500.0,0.00019927,2]
[358722463,1745403033208,-500.0,0.00019927,2]
[358722465,1745403033218,-500.0,0.00019927,2]
[358722467,1745403033227,-500.0,0.00019929,2]
[358722469,1745403033236,-500.0,0.00019929,2]
[358722471,1745403033246,-497.88004527,0.00019929,2]
[358722473,1745403033256,-500.0,0.00019929,2]
[358722475,1745403033265,-500.0,0.00019929,2]
[358722476,1745403033275,-500.0,0.00019929,2]
[358722478,1745403033284,-500.0,0.00019929,2]
[358722480,1745403033293,-204.97281867,0.00019929,2]
[358722482,1745403033303,-500.0,0.00019929,2]
[358722484,1745403033312,-500.0,0.00019929,2]
[358722486,1745403033321,-500.0,0.00019929,2]
[358722488,1745403033331,-500.0,0.00019929,2]
[358722490,1745403033340,-500.0,0.00019929,2]
[358722492,1745403033349,-500.0,0.00019929,2]
[358722494,1745403033359,-500.0,0.00019929,2]
[358722496,1745403033368,-500.0,0.00019929,2]
[358722498,1745403033379,-500.0,0.00019929,2]
[358722500,1745403033388,-500.0,0.00019929,2]
[358722502,1745403033398,-105456.1483381,0.0001993,2]
[358722527,1745403033711,-152.0,0.00019926,2]
[358722534,1745403039301,-270.97283963,0.00019926,2]
[358722554,1745403041246,-77.02716037,0.00019926,2]
[358722555,1745403041255,-322.97283963,0.00019926,2]
[358722556,1745403042571,-177.02716037,0.00019926,2]
[358722557,1745403042601,-7.55283881,0.00019926,2]
[358722600,1745403043303,-217.55805507,0.00019859,2]
[358722602,1745403043312,-492.44716119,0.00019926,2]
[358722604,1745403043323,-500.0,0.00019926,2]
[358722606,1745403043332,-500.0,0.00019926,2]
[358722608,1745403043342,-500.0,0.00019926,2]
[358722610,1745403043351,-500.0,0.00019926,2]
[358722612,1745403043361,-367.09061882,0.00019926,2]
[358722614,1745403043370,-500.0,0.00019926,2]
[358722616,1745403043380,-500.0,0.00019926,2]
[358722618,1745403043390,-500.0,0.00019926,2]
[358722620,1745403043399,-500.0,0.00019926,2]
[358722622,1745403043408,-500.0,0.00019926,2]
[358722623,1745403043418,-500.0,0.00019926,2]
[358722626,1745403043428,-169.72771102,0.00019926,2]
[358722675,1745403043644,-500.0,0.00019926,2]
[358722678,1745403043654,-500.0,0.00019926,2]
[358722680,1745403043664,-500.0,0.00019926,2]
[358722681,1745403043673,-500.0,0.00019926,2]
[358722683,1745403043683,-500.0,0.00019926,2]
[358722684,1745403043693,-500.0,0.00019926,2]
[358722686,1745403043704,-500.0,0.00019926,2]
[358722688,1745403043714,-500.0,0.00019926,2]
[358722689,1745403043723,-636.57618894,0.00019926,2]
[358722690,1745403043732,-745.29,0.00019927,2]
[358722691,1745403043742,-10866.56164854,0.0001993,2]
[358722692,1745403043754,-20650.41001336,0.0001993,2]
[358722693,1745403043764,-500.0,0.0001993,2]
[358722694,1745403043773,-565.1,0.0001993,2]
[358722695,1745403043783,-500.0,0.0001993,2]
[358722696,1745403043792,-500.0,0.0001993,2]
[358722697,1745403043802,-500.0,0.0001993,2]
[358722698,1745403043811,-500.0,0.0001993,2]
[358722699,1745403043820,-1088.04,0.0001993,2]
[358722700,1745403043830,-1553.74,0.0001993,2]
[358722701,1745403043839,-538.61236979,0.0001993,2]
[358722702,1745403043848,-612.09,0.0001993,2]
[358722703,1745403043857,-562.58,0.0001993,2]
[358722704,1745403043867,-1393.65,0.0001993,2]
[358722705,1745403043878,-500.0,0.0001993,2]
[358722706,1745403043888,-500.0,0.0001993,2]
[358722707,1745403043899,-500.0,0.0001993,2]
[358722708,1745403043910,-500.0,0.0001993,2]
[358722709,1745403043921,-500.0,0.0001993,2]
[358722710,1745403043933,-500.0,0.0001993,2]
[358722711,1745403043943,-500.0,0.0001993,2]
[358722712,1745403043954,-504.46597497,0.0001993,2]
[358722713,1745403043964,-783.91,0.0001993,2]
[358722714,1745403043973,-598.03,0.0001993,2]
[358722715,1745403043983,-500.0,0.0001993,2]
[358722716,1745403043992,-537.24,0.0001993,2]
[358722717,1745403044002,-822.07,0.0001993,2]
[358722718,1745403044011,-500.0,0.0001993,2]
[358722719,1745403044021,-500.0,0.0001993,2]
[358722720,1745403044032,-500.0,0.0001993,2]
[358722721,1745403044045,-500.0,0.0001993,2]
[358722722,1745403044055,-500.0,0.0001993,2]
[358722723,1745403044064,-500.0,0.0001993,2]
[358722724,1745403044074,-500.0,0.0001993,2]
[358722725,1745403044086,-524.38,0.0001993,2]
[358722726,1745403044095,-500.0,0.0001993,2]
[358722727,1745403044104,-500.0,0.0001993,2]
[358722728,1745403044114,-243.39679883,0.0001993,2]
[358722729,1745403044124,-500.0,0.0001993,2]
[358722730,1745403044134,-500.0,0.0001993,2]
[358722731,1745403044144,-3841.56,0.0001993,2]
[358722732,1745403044153,-500.0,0.0001993,2]
[358722733,1745403044163,-500.0,0.0001993,2]
[358722734,1745403044172,-500.0,0.0001993,2]
[358722735,1745403044182,-618.1,0.0001993,2]
[358722736,1745403044191,-500.0,0.0001993,2]
[358722737,1745403044201,-500.0,0.00019931,2]
[358722738,1745403044211,-500.0,0.00019931,2]
[358722739,1745403044222,-500.0,0.00019931,2]
[358722740,1745403044231,-584.09311289,0.00019931,2]
[358722741,1745403044241,-500.0,0.00019931,2]
[358722742,1745403044251,-500.0,0.00019931,2]
[358722743,1745403044260,-500.0,0.00019931,2]
[358722744,1745403044270,-500.0,0.00019931,2]
[358722745,1745403044279,-500.0,0.00019931,2]
[358722746,1745403044289,-500.0,0.00019931,2]
[358722747,1745403044298,-500.0,0.00019931,2]
[358722748,1745403044307,-500.0,0.00019931,2]
[358722749,1745403044318,-500.0,0.00019931,2]
[358722750,1745403044328,-500.0,0.00019931,2]
[358722751,1745403044337,-500.0,0.00019931,2]
[358722752,1745403044346,-500.0,0.00019931,2]
[358722753,1745403044355,-500.0,0.00019931,2]
[358722754,1745403044365,-500.0,0.00019931,2]
[358722755,1745403044375,-500.0,0.00019931,2]
[358722756,1745403044384,-500.0,0.00019931,2]
[358722757,1745403044394,-513.45394284,0.00019931,2]
[358722758,1745403044404,-500.0,0.00019931,2]
[358722759,1745403044414,-500.0,0.00019931,2]
[358722760,1745403044423,-500.0,0.00019931,2]
[358722761,1745403044433,-500.0,0.00019931,2]
[358722762,1745403044443,-500.0,0.00019931,2]
[358722763,1745403044452,-500.0,0.00019931,2]
[358722764,1745403044463,-500.0,0.00019931,2]
[358722765,1745403044473,-500.0,0.00019931,2]
[358722766,1745403044483,-500.0,0.00019931,2]
[358722767,1745403044492,-500.0,0.00019931,2]
[358722768,1745403044502,-500.0,0.00019931,2]
[358722769,1745403044511,-500.0,0.00019931,2]
[358722770,1745403044521,-334.46404568,0.00019931,2]
[358722771,1745403044531,-500.0,0.00019931,2]
[358722772,1745403044541,-500.0,0.00019931,2]
[358722773,1745403044550,-500.0,0.00019931,2]
[358722774,1745403044560,-500.0,0.00019931,2]
[358722775,1745403044570,-500.0,0.00019931,2]
[358722776,1745403044580,-656.41,0.00019931,2]
[358722777,1745403044590,-500.0,0.00019931,2]
[358722778,1745403044600,-500.0,0.00019931,2]
[358722779,1745403044611,-500.0,0.00019931,2]
[358722780,1745403044620,-539.63609907,0.00019931,2]
[358722781,1745403044630,-734.03,0.00019931,2]
[358722782,1745403044639,-500.0,0.00019931,2]
[358722783,1745403044650,-500.0,0.00019931,2]
[358722784,1745403044660,-500.0,0.00019931,2]
[358722785,1745403044670,-500.0,0.00019931,2]
[358722786,1745403044680,-500.0,0.00019931,2]
[358722787,1745403044690,-500.0,0.00019931,2]
[358722788,1745403044699,-559.14,0.00019931,2]
[358722789,1745403044711,-500.0,0.00019931,2]
[358722790,1745403044720,-500.0,0.00019931,2]
[358722791,1745403044730,-500.0,0.00019931,2]
[358722792,1745403044740,-298.32077228,0.00019931,2]
[358722793,1745403044749,-500.0,0.00019931,2]
[358722794,1745403044759,-500.0,0.00019931,2]
[358722795,1745403044769,-500.0,0.00019931,2]
[358722796,1745403044778,-500.0,0.00019931,2]
[358722797,1745403044788,-500.0,0.00019931,2]
[358722798,1745403044798,-500.0,0.00019931,2]
[358722799,1745403044807,-82.40178941,0.00019931,2]
[358722800,1745403044826,-417.59821059,0.00019931,2]
[358722801,1745403044836,-500.0,0.00019931,2]
[358722802,1745403044845,-500.0,0.00019931,2]
[358722803,1745403044854,-500.0,0.00019931,2]
[358722804,1745403044863,-500.0,0.00019931,2]
[358722805,1745403044873,-500.0,0.00019931,2]
[358722806,1745403044883,-682.6,0.00019931,2]
[358722807,1745403044892,-500.0,0.00019931,2]
[358722808,1745403044902,-500.0,0.00019931,2]
[358722809,1745403044911,-500.0,0.00019931,2]
[358722810,1745403044921,-500.0,0.00019931,2]
[358722811,1745403044930,-500.0,0.00019931,2]
[358722812,1745403044939,-500.0,0.00019931,2]
[358722813,1745403044949,-500.0,0.00019931,2]
[358722814,1745403044959,-500.0,0.00019931,2]
[358722815,1745403044969,-500.0,0.00019931,2]
[358722816,1745403044979,-500.0,0.00019931,2]
[358722817,1745403044988,-727.39,0.00019931,2]
[358722818,1745403044998,-500.0,0.00019931,2]
[358722819,1745403045008,-438.73471292,0.00019931,2]
[358722820,1745403045018,-214.55500712,0.00019931,2]
[358722821,1745403045028,-500.0,0.00019931,2]
[358722822,1745403045040,-500.0,0.00019931,2]
[358722823,1745403045051,-500.0,0.00019931,2]
[358722824,1745403045061,-686.67,0.00019931,2]
[358722825,1745403045071,-500.0,0.00019931,2]
[358722826,1745403045080,-759.45,0.00019931,2]
[358722827,1745403045091,-377.24409038,0.00019931,2]
[358722828,1745403045100,-500.0,0.00019931,2]
[358722829,1745403045110,-500.0,0.00019931,2]
[358722830,1745403045119,-797.43,0.00019931,2]
[358722831,1745403045130,-500.0,0.00019931,2]
[358722832,1745403045139,-500.0,0.00019931,2]
[358722833,1745403045149,-500.0,0.00019931,2]
[358722834,1745403045158,-593.54,0.00019931,2]
[358722835,1745403045167,-500.0,0.00019931,2]
[358722836,1745403045177,-500.0,0.00019931,2]
[358722837,1745403045186,-500.0,0.00019931,2]
[358722838,1745403045196,-500.0,0.00019931,2]
[358722839,1745403045206,-500.0,0.00019931,2]
[358722840,1745403045216,-500.0,0.00019931,2]
[358722841,1745403045226,-500.0,0.00019931,2]
[358722842,1745403045235,-500.0,0.00019931,2]
[358722843,1745403045245,-500.0,0.00019931,2]
[358722844,1745403045254,-500.0,0.00019931,2]
[358722845,1745403045263,-500.0,0.00019931,2]
[358722846,1745403045275,-500.0,0.00019931,2]
[358722847,1745403045284,-500.0,0.00019931,2]
[358722848,1745403045293,-500.0,0.00019931,2]
[358722849,1745403045303,-500.0,0.00019931,2]
[358722850,1745403045312,-500.0,0.00019931,2]
[358722851,1745403045322,-500.0,0.00019931,2]
[358722852,1745403045331,-500.0,0.00019931,2]
[358722853,1745403045340,-500.0,0.00019931,2]
[358722854,1745403045349,-500.0,0.00019931,2]
[358722855,1745403045358,-500.0,0.00019931,2]
[358722856,1745403045371,-500.0,0.00019931,2]
[358722857,1745403045385,-500.0,0.00019931,2]
[358722858,1745403045398,-500.0,0.00019931,2]
[358722859,1745403045412,-500.0,0.00019931,2]
[358722860,1745403045426,-500.0,0.00019931,2]
[358722861,1745403045438,-500.0,0.00019931,2]
[358722862,1745403045448,-500.0,0.00019931,2]
[358722863,1745403045462,-500.0,0.00019931,2]
[358722864,1745403045473,-500.0,0.00019931,2]
[358722865,1745403045486,-236.2180139,0.00019931,2]
[358722866,1745403045498,-500.0,0.00019931,2]
[358722867,1745403045511,-500.0,0.00019931,2]
[358722868,1745403045524,-500.0,0.00019931,2]
[358722869,1745403045536,-500.0,0.00019931,2]
[358722870,1745403045548,-500.0,0.00019931,2]
[358722871,1745403045560,-500.0,0.00019931,2]
[358722872,1745403045573,-500.0,0.00019931,2]
[358722873,1745403045586,-500.0,0.00019931,2]
[358722874,1745403045598,-500.0,0.00019931,2]
[358722875,1745403045610,-500.0,0.00019931,2]
[358722876,1745403045622,-624.72,0.00019931,2]
[358722879,1745403045634,-500.0,0.00019931,2]
[358722880,1745403045645,-500.0,0.00019931,2]
[358722881,1745403045657,-500.0,0.00019931,2]
[358722882,1745403045671,-500.0,0.00019931,2]
[358722883,1745403045684,-500.0,0.00019931,2]
[358722884,1745403045695,-500.0,0.00019931,2]
[358722885,1745403045708,-500.0,0.00019931,2]
[358722886,1745403045719,-500.0,0.00019931,2]
[358722887,1745403045730,-500.0,0.00019931,2]
[358722888,1745403045742,-500.0,0.00019931,2]
[358722889,1745403045752,-500.0,0.00019931,2]
[358722891,1745403045764,-500.0,0.00019931,2]
[358722892,1745403045776,-500.0,0.00019931,2]
[358722895,1745403045788,-500.0,0.00019931,2]
[358722897,1745403045801,-500.0,0.00019931,2]
[358722898,1745403045812,-500.0,0.00019931,2]
[358722899,1745403045825,-500.0,0.00019931,2]
[358722900,1745403045837,-500.0,0.00019931,2]
[358722901,1745403045850,-500.0,0.00019931,2]
[358722903,1745403045863,-500.0,0.00019931,2]
[358722904,1745403045876,-500.0,0.00019931,2]
[358722905,1745403045887,-500.0,0.00019931,2]
[358722907,1745403045898,-500.0,0.00019931,2]
[358722908,1745403045908,-500.0,0.00019931,2]
[358722910,1745403045918,-500.0,0.00019931,2]
[358722912,1745403045929,-500.0,0.00019931,2]
[358722914,1745403045940,-500.0,0.00019931,2]
[358722916,1745403045953,-500.0,0.00019931,2]
[358722917,1745403045967,-374.5567382,0.00019931,2]
[358722918,1745403045980,-500.0,0.00019931,2]
[358722919,1745403045990,-500.0,0.00019931,2]
[358722920,1745403045999,-500.0,0.00019931,2]
[358722921,1745403046010,-500.0,0.00019931,2]
[358722922,1745403046021,-500.0,0.00019931,2]
[358722923,1745403046033,-500.0,0.00019931,2]
[358722924,1745403046047,-500.0,0.00019931,2]
[358722925,1745403046057,-500.0,0.00019931,2]
[358722926,1745403046067,-500.0,0.00019931,2]
[358722927,1745403046079,-500.0,0.00019931,2]
[358722928,1745403046089,-500.0,0.00019931,2]
[358722929,1745403046100,-500.0,0.00019931,2]
[358722930,1745403046113,-500.0,0.00019931,2]